bitfinex/quotes_BTCUSD_20251104
["timestamp","ask_amount","ask_price","bid_price","bid_amount"]
[1762290273300,0.01441388,100830.0,100820.0,0.04637]
[1762290273502,0.01490388,100830.0,100810.0,0.04637]
[1762290273707,0.04169,100820.0,100810.0,0.04637]
[1762290274072,0.04169,100820.0,100790.0,0.18807877]
[1762290274496,3.0,100810.0,100790.0,0.18807877]
[1762290275360,0.0495,100810.0,100770.0,0.43624931]
[1762290275499,3.0,100800.0,100780.0,0.0938]
[1762290275928,3.0,100800.0,100770.0,0.23777877]
[1762290276119,0.03556,100790.0,100770.0,0.23777877]
[1762290276749,3.0,100800.0,100770.0,0.35237358]
[1762290276951,3.0,100800.0,100770.0,0.23777877]
[1762290277148,3.0,100790.0,100770.0,0.23777877]
[1762290277396,0.0298005,100810.0,100780.0,0.0938]
[1762290277705,0.0002,100860.0,100840.0,2.993179]
[1762290277983,0.00034499,100860.0,100850.0,4.39727112]
[1762290278198,0.0002,100870.0,100860.0,0.19829466]
[1762290278387,0.0002,100870.0,100860.0,1.40838313]
[1762290278602,0.0002,100870.0,100860.0,0.15923]
[1762290278825,0.0002,100870.0,100860.0,0.16959767]
[1762290279027,0.0002,100870.0,100860.0,0.16922999]
[1762290279238,0.0002,100870.0,100840.0,1.23313246]
[1762290279416,0.00324324,100870.0,100860.0,0.011]
[1762290279651,0.00324324,100870.0,100860.0,0.36852466]
[1762290280060,0.00324324,100870.0,100860.0,1.22861314]
[1762290280267,0.00324324,100870.0,100860.0,1.32289191]
[1762290280471,0.00324324,100870.0,100860.0,1.66289191]
[1762290280650,0.00324324,100870.0,100860.0,1.65189191]
[1762290280843,0.00224324,100870.0,100860.0,1.6618919]
[1762290281075,0.00224324,100870.0,100860.0,1.67789189]
[1762290281284,0.0002,100890.0,100880.0,0.19825535]
[1762290281483,0.0002,100890.0,100880.0,1.3506826]
[1762290281887,0.00070411,100890.0,100880.0,1.25640383]
[1762290282020,0.00070411,100890.0,100880.0,0.39631535]
[1762290282233,0.00070411,100890.0,100880.0,0.49059412]
[1762290282437,0.00070411,100890.0,100880.0,0.50867229]
[1762290283079,0.00070411,100890.0,100880.0,1.36876077]
[1762290283728,0.00070411,100890.0,100880.0,0.41439352]
[1762290283884,0.00070411,100890.0,100880.0,1.274482]
[1762290284087,0.00070411,100890.0,100880.0,1.284482]
[1762290284306,0.00070411,100890.0,100880.0,1.274482]
[1762290284753,0.00070411,100890.0,100880.0,1.282482]
[1762290285342,0.00070411,100890.0,100880.0,1.26440383]
[1762290285725,0.00070411,100890.0,100880.0,0.20606]
[1762290285933,0.00070411,100890.0,100880.0,0.40431535]
[1762290286448,0.00070411,100890.0,100880.0,0.20606]
[1762290286599,3.50070411,100890.0,100880.0,0.008]
[1762290286798,3.49025108,100890.0,100880.0,0.008]
[1762290287217,3.39069411,100890.0,100880.0,0.008]
[1762290287435,3.0,100880.0,100850.0,0.19396207]
[1762290287639,3.0,100870.0,100850.0,0.09942]
[1762290287870,3.00022682,100870.0,100850.0,0.29773388]
[1762290288065,0.00022682,100870.0,100850.0,0.11849253]
[1762290288376,3.0,100870.0,100850.0,0.19479801]
[1762290288583,3.0,100880.0,100850.0,0.09942]
[1762290288753,3.09427877,100880.0,100850.0,0.09942]
[1762290288960,3.0,100870.0,100850.0,0.10779559]
[1762290289156,3.0,100870.0,100850.0,0.19369877]
[1762290289364,3.0,100880.0,100860.0,0.06639]
[1762290289562,3.0,100880.0,100860.0,0.36410302]
[1762290289759,3.0,100880.0,100870.0,0.04672]
[1762290290181,3.02174719,100880.0,100850.0,0.01997459]
[1762290290332,0.09427877,100870.0,100850.0,0.09942]
[1762290290532,3.0,100870.0,100860.0,0.001]
[1762290291025,3.0,100870.0,100850.0,0.19369877]
[1762290291391,3.0,100870.0,100850.0,0.39201023]
[1762290291610,3.0,100870.0,100850.0,0.19369877]
[1762290291789,3.0,100870.0,100850.0,0.3920128]
[1762290291990,3.0,100870.0,100860.0,0.16581]
[1762290292255,0.00022688,100880.0,100860.0,0.16981]
[1762290292414,0.34022688,100880.0,100870.0,0.04672]
[1762290293181,0.34022688,100880.0,100870.0,0.14614]
[1762290293603,0.00022688,100880.0,100870.0,0.21253]
[1762290294235,0.00022688,100880.0,100870.0,0.414805]
[1762290294476,0.00022688,100880.0,100870.0,0.21653]
[1762290294694,0.00022688,100880.0,100870.0,0.31080877]
[1762290294903,0.00022688,100880.0,100870.0,0.50908377]
[1762290295115,0.00022688,100880.0,100870.0,0.30680877]
[1762290295327,0.00022688,100880.0,100870.0,0.11311]
[1762290295540,0.09450565,100880.0,100850.0,0.11744479]
[1762290295743,3.0,100870.0,100850.0,0.09942]
[1762290296613,3.0,100870.0,100850.0,0.29773341]
[1762290296825,3.0,100870.0,100850.0,0.11746215]
[1762290297020,3.0,100870.0,100850.0,0.3940125]
[1762290297178,0.00022688,100880.0,100860.0,0.26468466]
[1762290297390,0.00022688,100880.0,100870.0,0.04672]
[1762290297591,0.34022688,100880.0,100870.0,0.04672]
[1762290298574,3.34022688,100880.0,100870.0,0.04672]
[1762290299427,3.34022688,100880.0,100860.0,0.11032586]
[1762290299656,3.34022688,100880.0,100870.0,0.04672]
[1762290299858,3.09427877,100870.0,100840.0,0.12425]
[1762290300039,3.0,100860.0,100850.0,0.09942]
[1762290300456,3.0,100860.0,100850.0,0.16581]
[1762290300601,3.0,100870.0,100850.0,0.16581]
[1762290301059,3.09427877,100860.0,100840.0,0.02497499]
[1762290301259,0.09427877,100860.0,100840.0,0.02497499]
[1762290301659,0.00891018,100860.0,100840.0,0.02497499]
[1762290301890,0.02077,100850.0,100840.0,0.02497499]
[1762290302063,3.02077,100870.0,100840.0,0.12439499]
[1762290302259,3.0,100850.0,100840.0,0.12439499]
[1762290302675,3.0,100860.0,100840.0,0.19078499]
[1762290303033,3.0,100860.0,100840.0,0.09136499]
[1762290303231,3.0,100860.0,100840.0,0.09436499]
[1762290303601,3.0,100860.0,100840.0,0.19378499]
[1762290304024,3.0,100860.0,100840.0,0.39211814]
[1762290304406,3.34,100860.0,100850.0,0.06639]
[1762290304652,0.35238616,100860.0,100840.0,0.02797499]
[1762290304807,0.35238616,100860.0,100840.0,0.00314499]
[1762290304808,3.09427877,100850.0,100840.0,0.00314499]
[1762290305014,3.0,100850.0,100840.0,0.00314499]
[1762290305448,3.34,100850.0,100840.0,0.00314499]
[1762290306218,3.53831432,100850.0,100840.0,0.00314499]
[1762290306417,3.53831432,100850.0,100840.0,0.00014499]
[1762290306418,3.57599432,100850.0,100840.0,0.00014499]
[1762290306622,3.67555129,100850.0,100840.0,0.00014499]
[1762290306773,3.67555129,100850.0,100840.0,0.00214499]
[1762290306983,0.34,100820.0,100800.0,0.04672]
[1762290307197,0.34,100820.0,100790.0,0.04672]
[1762290307198,3.0,100800.0,100790.0,0.04672]
[1762290307803,0.34,100800.0,100790.0,0.04672]
[1762290307976,0.34,100800.0,100780.0,0.05233664]
[1762290307977,3.352386,100800.0,100780.0,0.05233664]
[1762290308352,0.13630877,100790.0,100770.0,0.04672]
[1762290308559,3.0,100780.0,100770.0,0.04672]
[1762290308866,3.34,100760.0,100750.0,0.04712]
[1762290308975,3.34,100760.0,100750.0,0.0004]
[1762290308976,0.36077,100760.0,100750.0,0.0004]
[1762290309177,3.36077,100760.0,100750.0,0.0004]
[1762290309592,3.46032697,100760.0,100750.0,0.0004]
[1762290309883,3.36077,100760.0,100750.0,0.00088334]
[1762290310463,3.39337,100760.0,100750.0,0.00288334]
[1762290310696,3.39337,100760.0,100750.0,0.00088334]
[1762290311054,3.39437,100760.0,100750.0,0.00088334]
[1762290311626,3.36177,100760.0,100750.0,0.00088334]
[1762290312815,3.46132697,100760.0,100750.0,0.00088334]
[1762290313218,3.36177,100760.0,100750.0,0.00088334]
[1762290313606,3.38019832,100760.0,100750.0,0.00088334]
[1762290313810,3.41279832,100760.0,100750.0,0.00088334]
[1762290314010,3.62050502,100760.0,100750.0,0.00088334]
[1762290314238,0.34,100740.0,100700.0,0.10068523]
[1762290314440,0.09427877,100720.0,100700.0,0.10083004]
[1762290314630,0.43427877,100720.0,100700.0,0.10083004]
[1762290314862,0.34,100720.0,100710.0,0.06281]
[1762290315065,0.09427877,100740.0,100710.0,0.37673232]
[1762290315290,0.34,100740.0,100730.0,0.26136058]
[1762290315428,3.09427877,100750.0,100730.0,0.35736058]
[1762290315429,0.09427877,100750.0,100730.0,0.35736058]
[1762290315836,0.02177,100760.0,100740.0,0.15881]
[1762290316042,3.0,100750.0,100740.0,0.35734087]
[1762290316244,3.0,100750.0,100740.0,0.06281]
[1762290316617,3.09955697,100750.0,100720.0,0.04545]
[1762290316789,3.0,100730.0,100720.0,0.04545]
[1762290317033,3.0,100730.0,100720.0,0.00014481]
[1762290317204,0.34,100740.0,100720.0,0.10840481]
[1762290317433,3.0,100730.0,100720.0,0.04559481]
[1762290317760,0.01239721,100730.0,100720.0,0.20440481]
[1762290317955,0.34,100740.0,100720.0,0.20440481]
[1762290318161,0.09427877,100750.0,100720.0,0.24416482]
[1762290318356,0.00891018,100740.0,100720.0,0.00014481]
[1762290318604,3.43427877,100730.0,100720.0,0.00014481]
[1762290319412,3.43427877,100730.0,100720.0,0.00214481]
[1762290319813,3.43427877,100730.0,100720.0,0.00014481]
[1762290320012,3.43427877,100730.0,100720.0,0.00214481]
[1762290320223,3.53383574,100730.0,100720.0,0.00214481]
[1762290320422,3.73238632,100730.0,100720.0,0.00014481]
[1762290320667,3.76498632,100730.0,100720.0,0.00014481]
[1762290320808,3.56643574,100730.0,100720.0,0.00014481]
[1762290321023,3.76498632,100730.0,100720.0,0.00014481]
[1762290321233,3.76498632,100730.0,100720.0,4.81e-06]
[1762290321438,3.0,100710.0,100700.0,0.00468523]
[1762290321645,3.10021697,100710.0,100700.0,0.00483028]
[1762290322046,3.00066,100710.0,100700.0,0.00483028]
[1762290322480,0.19583574,100730.0,100700.0,0.00483028]
[1762290322707,0.43427877,100710.0,100700.0,0.00483028]
[1762290323601,3.09427877,100710.0,100700.0,0.00683028]
[1762290323821,3.46687877,100710.0,100700.0,0.00483028]
[1762290324206,3.56643574,100710.0,100700.0,0.00483028]
[1762290324396,3.56643574,100710.0,100700.0,0.00683028]
[1762290325464,3.56643574,100710.0,100700.0,0.00483028]
[1762290325877,3.46687877,100710.0,100700.0,0.00483028]
[1762290330231,3.66546878,100710.0,100700.0,2.8e-07]
[1762290330437,3.0,100670.0,100650.0,0.04545]
[1762290330643,0.13305895,100660.0,100650.0,0.04593352]
[1762290330849,0.12414877,100660.0,100650.0,0.04593352]
[1762290330989,0.47305895,100660.0,100650.0,0.00048352]
[1762290331195,0.46444877,100660.0,100650.0,0.00048352]
[1762290331403,3.46444877,100660.0,100650.0,0.00048352]
[1762290331599,0.46414877,100660.0,100650.0,0.00048352]
[1762290331806,0.36987,100660.0,100650.0,0.00048352]
[1762290332246,3.46774,100660.0,100650.0,0.00048352]
[1762290332487,3.46774,100660.0,100650.0,0.00248352]
[1762290332830,3.43325,100660.0,100650.0,0.00248352]
[1762290333225,3.63193865,100660.0,100650.0,0.00248352]
[1762290333476,3.64464853,100660.0,100650.0,0.00248352]
[1762290333624,3.7442055,100660.0,100650.0,0.00248352]
[1762290333820,3.54551685,100660.0,100650.0,0.00248352]
[1762290334245,3.44595988,100660.0,100650.0,0.00248352]
[1762290334444,3.44595988,100660.0,100650.0,0.00048352]
[1762290334445,3.44608988,100660.0,100650.0,0.00048352]
[1762290335367,3.44808988,100660.0,100650.0,0.00048352]
[1762290336154,3.44808988,100660.0,100650.0,0.00154563]
[1762290336155,3.44608988,100660.0,100650.0,0.00154563]
[1762290336556,3.64477853,100660.0,100650.0,0.00154563]
[1762290336756,3.7443355,100660.0,100650.0,0.00154563]
[1762290337264,3.54564685,100660.0,100650.0,0.00154563]
[1762290337924,3.7443355,100660.0,100650.0,0.00154563]
[1762290338133,3.54564685,100660.0,100650.0,0.00154563]
[1762290338701,3.54764685,100660.0,100650.0,0.00154563]
[1762290339110,3.54564685,100660.0,100650.0,0.00154563]
[1762290339350,3.57729503,100660.0,100650.0,0.00154563]
[1762290339554,3.57329503,100660.0,100650.0,0.00154563]
[1762290339989,0.53870839,100650.0,100640.0,0.0004]
[1762290340195,3.84994366,100650.0,100640.0,0.0004]
[1762290340412,3.64201786,100650.0,100640.0,0.0004]
[1762290341681,3.54246089,100650.0,100640.0,0.0004]
[1762290341900,3.74316928,100650.0,100640.0,0.0004]
[1762290342115,3.75238509,100650.0,100640.0,0.0004]
[1762290342325,3.75238509,100650.0,100580.0,0.04858]
[1762290342326,3.0005,100640.0,100580.0,0.04858]
[1762290342574,3.0,100600.0,100580.0,0.04872511]
[1762290342787,3.0,100600.0,100580.0,0.14461727]
[1762290342998,3.0,100600.0,100580.0,0.14138511]
[1762290343665,2.88071571,100600.0,100580.0,0.14138511]
[1762290343893,3.0,100600.0,100580.0,0.14138511]
[1762290344100,3.0,100600.0,100580.0,0.04872511]
[1762290344317,3.0,100600.0,100580.0,0.14138511]
[1762290344775,3.0,100600.0,100580.0,0.05172511]
[1762290345021,3.0,100600.0,100590.0,0.15587]
[1762290345236,0.34,100600.0,100590.0,0.15587]
[1762290345454,0.3895,100600.0,100580.0,0.04872511]
[1762290345881,0.3895,100600.0,100580.0,0.05172511]
[1762290346102,0.3895,100600.0,100580.0,0.00054511]
[1762290346103,0.03413018,100590.0,100580.0,0.00054511]
[1762290346321,3.0,100590.0,100580.0,0.19939179]
[1762290346533,3.0,100590.0,100580.0,0.26260179]
[1762290346703,3.0,100590.0,100580.0,0.35703358]
[1762290347264,0.03771153,100590.0,100580.0,0.0023169]
[1762290347671,0.03771153,100590.0,100580.0,0.20116358]
[1762290347882,0.03771153,100590.0,100580.0,0.0053169]
[1762290347883,0.1814903,100590.0,100580.0,0.0053169]
[1762290348158,0.1322403,100590.0,100580.0,0.0023169]
[1762290348375,0.03771153,100590.0,100580.0,0.0023169]
[1762290348532,0.03771153,100590.0,100580.0,0.36203358]
[1762290348533,0.02522,100590.0,100580.0,0.36203358]
[1762290348698,3.0,100600.0,100580.0,0.1631869]
[1762290349128,3.0,100600.0,100580.0,0.2113669]
[1762290349346,3.0,100600.0,100590.0,0.15587]
[1762290350767,3.0,100600.0,100590.0,0.35469692]
[1762290350966,3.0,100600.0,100590.0,0.15587]
[1762290351114,3.0,100600.0,100590.0,0.35469692]
[1762290351356,3.0,100600.0,100590.0,0.15887]
[1762290351554,3.0,100600.0,100590.0,0.003]
[1762290351760,3.34049,100600.0,100590.0,0.003]
[1762290351956,3.3895,100600.0,100590.0,0.003]
[1762290352360,3.34049,100600.0,100590.0,0.003]
[1762290352610,3.3895,100600.0,100590.0,0.003]
[1762290353391,3.61910496,100600.0,100590.0,0.003]
[1762290353594,3.62831654,100600.0,100590.0,0.003]
[1762290354343,3.42950939,100600.0,100590.0,0.00151853]
[1762290354544,3.62831654,100600.0,100590.0,0.00251853]
[1762290354731,3.64674064,100600.0,100590.0,0.00251853]
[1762290355119,3.53882692,100590.0,100580.0,0.00054511]
[1762290355332,3.53882692,100590.0,100570.0,0.0004]
[1762290355333,3.53884668,100580.0,100570.0,0.0004]
[1762290355572,3.53884668,100580.0,100570.0,0.00054447]
[1762290355573,3.70760545,100580.0,100570.0,0.00054447]
[1762290356057,3.53886646,100570.0,100560.0,4e-05]
[1762290356265,3.65344646,100570.0,100560.0,4e-05]
[1762290356607,3.65344646,100570.0,100560.0,0.00029328]
[1762290356809,3.77860234,100570.0,100560.0,0.00029328]
[1762290357588,3.77860234,100570.0,100550.0,0.0002]
[1762290357589,3.57973588,100570.0,100550.0,0.0002]
[1762290357775,3.53254895,100560.0,100550.0,0.00034517]
[1762290358024,3.52363877,100560.0,100550.0,0.00034517]
[1762290358436,3.52363877,100560.0,100550.0,0.00059848]
[1762290358644,3.59390542,100560.0,100550.0,0.00059848]
[1762290359079,3.52463877,100560.0,100550.0,0.00059848]
[1762290359203,3.723525,100560.0,100550.0,0.00059848]
[1762290359404,3.11867233,100550.0,100540.0,0.0002]
[1762290359602,3.46064725,100550.0,100540.0,0.00068439]
[1762290359824,3.11867233,100530.0,100520.0,0.00044]
[1762290360045,3.14462233,100530.0,100520.0,0.00044]
[1762290360261,3.39233791,100530.0,100520.0,0.00044]
[1762290360482,2.77867233,100520.0,100510.0,4e-05]
[1762290360684,3.29081001,100520.0,100510.0,4e-05]
[1762290360964,3.38741554,100520.0,100510.0,4e-05]
[1762290361327,3.2624611,100520.0,100510.0,4e-05]
[1762290361730,0.34,100520.0,100510.0,4e-05]
[1762290361937,0.341,100520.0,100510.0,4e-05]
[1762290362132,3.39099,100520.0,100510.0,4e-05]
[1762290362333,3.40360098,100520.0,100510.0,4e-05]
[1762290362519,3.5255603,100520.0,100510.0,4e-05]
[1762290362734,3.40360098,100520.0,100510.0,4e-05]
[1762290362939,0.35361098,100520.0,100510.0,4e-05]
[1762290363591,0.001,100520.0,100510.0,0.35489517]
[1762290363970,0.001,100520.0,100510.0,0.15591]
[1762290364372,0.001,100520.0,100510.0,0.35489517]
[1762290364699,0.001,100520.0,100510.0,1.08502595]
[1762290364898,0.0126694,100550.0,100520.0,0.20887958]
[1762290365074,0.02190438,100550.0,100540.0,0.11139]
[1762290365302,0.00923498,100550.0,100540.0,0.31056915]
[1762290365500,0.52522,100570.0,100550.0,0.19890601]
[1762290365756,0.09427877,100560.0,100550.0,0.15587]
[1762290365914,0.10351951,100560.0,100550.0,0.15587]
[1762290366275,3.0,100550.0,100540.0,0.04818]
[1762290366449,3.00924074,100550.0,100540.0,0.04818]
[1762290366707,0.00924074,100550.0,100540.0,0.04918]
[1762290366920,3.00924074,100550.0,100540.0,0.20405]
[1762290367128,0.00924074,100550.0,100540.0,0.4029758]
[1762290367340,0.10718662,100560.0,100550.0,0.005]
[1762290367546,0.1164397,100560.0,100550.0,0.005]
[1762290367756,0.02216093,100560.0,100540.0,0.3397565]
[1762290367962,0.02216093,100560.0,100540.0,0.3447565]
[1762290368181,3.0,100550.0,100540.0,0.14584]
[1762290368401,0.00925308,100550.0,100540.0,0.2521058]
[1762290368748,0.00925308,100550.0,100540.0,0.95116781]
[1762290368954,0.00925308,100550.0,100540.0,1.03882781]
[1762290369151,0.00925308,100550.0,100540.0,0.4029758]
[1762290370192,0.00925308,100550.0,100540.0,0.4049758]
[1762290370395,0.00925308,100550.0,100540.0,1.04082781]
[1762290370769,0.00048171,100570.0,100560.0,0.19888623]
[1762290370973,0.02827558,100570.0,100560.0,0.25937623]
[1762290371222,0.02827558,100570.0,100560.0,0.35493623]
[1762290371428,0.02827697,100570.0,100560.0,0.35493623]
[1762290371629,0.00974633,100570.0,100560.0,0.35493623]
[1762290372178,0.00974633,100570.0,100560.0,0.99078824]
[1762290372391,0.00974633,100570.0,100560.0,0.35493623]
[1762290372593,0.00974633,100570.0,100560.0,0.15605]
[1762290373122,0.00974633,100570.0,100560.0,0.35493623]
[1762290373279,0.01274633,100570.0,100560.0,0.35493623]
[1762290373478,0.00974633,100570.0,100560.0,0.35493623]
[1762290373685,0.00474633,100570.0,100560.0,0.15605]
[1762290373892,0.00474633,100570.0,100560.0,0.001]
[1762290374107,0.34474633,100570.0,100560.0,0.001]
[1762290374315,0.36329206,100570.0,100560.0,0.3619024]
[1762290374495,0.36329536,100570.0,100560.0,0.15705]
[1762290375004,0.02329447,100570.0,100560.0,0.15705]
[1762290375411,0.02329447,100570.0,100560.0,0.06149]
[1762290375606,0.11757324,100570.0,100560.0,0.001]
[1762290375823,3.5265201,100570.0,100560.0,0.001]
[1762290376029,3.0,100560.0,100550.0,0.00022801]
[1762290376804,3.0,100560.0,100550.0,0.15627801]
[1762290377029,3.0,100560.0,100550.0,0.35518402]
[1762290377192,3.0,100560.0,100550.0,0.06071801]
[1762290377343,0.01856155,100560.0,100550.0,0.00022801]
[1762290377544,0.01856155,100560.0,100550.0,0.06171801]
[1762290377766,0.01292777,100590.0,100570.0,0.19886252]
[1762290377999,3.01870572,100590.0,100580.0,0.0251]
[1762290378271,3.0,100580.0,100570.0,0.04969]
[1762290378516,0.04378128,100580.0,100570.0,0.04969]
[1762290378777,3.0,100570.0,100560.0,0.04969]
[1762290379028,0.36522,100580.0,100560.0,0.40462623]
[1762290379244,0.01856332,100580.0,100570.0,0.35524662]
[1762290379457,0.00514444,100590.0,100580.0,0.19884668]
[1762290379670,0.06806758,100610.0,100580.0,0.15605]
[1762290379878,3.0,100590.0,100560.0,0.35408054]
[1762290380095,3.0,100580.0,100560.0,0.14539444]
[1762290380309,3.0,100580.0,100560.0,0.00014444]
[1762290380310,3.34940018,100570.0,100560.0,0.00014444]
[1762290380509,3.40806758,100570.0,100560.0,0.00014444]
[1762290380823,3.63415256,100570.0,100560.0,0.00014444]
[1762290381554,3.34,100560.0,100550.0,0.12367801]
[1762290381749,3.63431731,100560.0,100550.0,0.12367801]
[1762290381951,0.34,100540.0,100510.0,4e-05]
[1762290382151,0.34,100540.0,100510.0,0.09431877]
[1762290382152,3.36561,100520.0,100510.0,0.09431877]
[1762290382352,3.36561,100520.0,100510.0,4e-05]
[1762290382564,0.34,100520.0,100510.0,0.20578]
[1762290382761,0.34,100520.0,100510.0,0.04973]
[1762290382973,0.34,100520.0,100510.0,0.30920517]
[1762290383225,3.0,100530.0,100520.0,0.19896369]
[1762290383340,0.36521,100540.0,100520.0,0.29452369]
[1762290383546,0.35859845,100540.0,100530.0,0.35499558]
[1762290383764,0.34,100540.0,100530.0,0.35499558]
[1762290384520,0.35860418,100540.0,100530.0,0.19894558]
[1762290384724,0.59427877,100550.0,100530.0,0.35499558]
[1762290384860,0.4528819,100550.0,100540.0,0.1989258]
[1762290385067,0.4528819,100550.0,100540.0,0.3549758]
[1762290385068,0.01860313,100550.0,100540.0,0.3549758]
[1762290385699,0.02790563,100550.0,100540.0,0.3549758]
[1762290385908,0.07412407,100550.0,100540.0,0.3549758]
[1762290386169,0.07912407,100550.0,100540.0,0.3549758]
[1762290386301,0.03290563,100550.0,100540.0,0.3549758]
[1762290386502,0.02790563,100550.0,100540.0,0.3549758]
[1762290386705,0.02790563,100550.0,100540.0,0.15705]
[1762290386910,0.02790563,100550.0,100540.0,0.3559758]
[1762290387300,0.02790563,100550.0,100540.0,1.21878697]
[1762290387301,0.0093025,100550.0,100540.0,1.21878697]
[1762290387701,3.0,100570.0,100560.0,0.19888184]
[1762290387906,0.02791179,100570.0,100560.0,0.19888184]
[1762290388115,0.02791179,100570.0,100560.0,0.35493184]
[1762290388923,0.0320568,100570.0,100560.0,0.15605]
[1762290389365,0.0320568,100570.0,100550.0,0.19890601]
[1762290389366,3.0,100560.0,100550.0,0.19890601]
[1762290389572,0.00930393,100560.0,100550.0,0.19890601]
[1762290389732,0.00930393,100560.0,100550.0,0.25939601]
[1762290389936,0.00930393,100560.0,100550.0,0.35495601]
[1762290390191,0.00930393,100560.0,100550.0,0.15605]
[1762290390607,0.34,100540.0,100510.0,0.14529]
[1762290390816,3.0,100520.0,100510.0,0.14529]
[1762290391013,3.0,100530.0,100510.0,0.25866442]
[1762290391209,0.00930859,100530.0,100510.0,0.04973]
[1762290391415,0.00930859,100530.0,100520.0,0.06049]
[1762290391572,0.00930859,100530.0,100520.0,0.35620231]
[1762290391782,0.00930859,100530.0,100520.0,0.15605]
[1762290392147,0.00930859,100530.0,100520.0,0.35549709]
[1762290392668,0.01130859,100530.0,100520.0,0.15653171]
[1762290392986,0.01130859,100530.0,100520.0,0.35975065]
[1762290393189,0.01130859,100530.0,100520.0,1.21830826]
[1762290393395,0.12463297,100610.0,100560.0,0.00994431]
[1762290393589,0.12463297,100610.0,100590.0,0.01467]
[1762290393590,3.0,100600.0,100590.0,0.01467]
[1762290393922,3.19883117,100590.0,100550.0,0.04572]
[1762290394283,3.34,100560.0,100550.0,0.04572]
[1762290394431,3.34929912,100560.0,100550.0,0.04572]
[1762290394632,3.3494441,100560.0,100550.0,0.04572]
[1762290394836,3.0,100550.0,100540.0,0.00022803]
[1762290395038,3.02235912,100550.0,100540.0,0.00022803]
[1762290395810,3.52288609,100550.0,100540.0,0.00022803]
[1762290396057,3.42443912,100550.0,100540.0,0.00022803]
[1762290396360,3.42243912,100550.0,100540.0,0.00022803]
[1762290397300,3.42332912,100550.0,100540.0,0.00022803]
[1762290397807,3.42532912,100550.0,100540.0,0.00022803]
[1762290398018,3.62223513,100550.0,100540.0,0.00022803]
[1762290398201,3.7217921,100550.0,100540.0,0.00022803]
[1762290398509,3.73279209,100550.0,100540.0,0.00022803]
[1762290398713,0.34,100520.0,100510.0,4e-05]
[1762290398893,3.52020877,100520.0,100510.0,4e-05]
[1762290399934,3.52020877,100520.0,100510.0,0.00052171]
[1762290400463,3.46071877,100520.0,100510.0,0.04857171]
[1762290400668,3.0,100540.0,100520.0,0.19896292]
[1762290400876,3.0,100530.0,100520.0,0.29642292]
[1762290401077,3.0,100540.0,100530.0,0.35867558]
[1762290401322,0.00928734,100540.0,100530.0,0.35867558]
[1762290401502,3.34,100540.0,100530.0,0.35867558]
[1762290401695,0.01306,100550.0,100530.0,0.15973]
[1762290401915,3.0,100540.0,100530.0,0.15973]
[1762290402259,3.0,100540.0,100530.0,0.35867558]
[1762290402440,3.0,100540.0,100530.0,0.15973]
[1762290402839,3.34,100540.0,100530.0,0.16073]
[1762290403043,0.39432886,100540.0,100530.0,0.001]
[1762290403254,0.34,100540.0,100530.0,0.001]
[1762290403453,3.0,100540.0,100530.0,0.001]
[1762290404117,3.0,100540.0,100520.0,0.19896499]
[1762290404314,3.0,100540.0,100520.0,0.29642499]
[1762290404529,0.001,100540.0,100530.0,0.35867558]
[1762290404930,0.001,100540.0,100530.0,0.45295435]
[1762290405133,0.001,100540.0,100530.0,0.35867558]
[1762290405345,3.0,100550.0,100530.0,0.35867401]
[1762290405552,0.34,100550.0,100540.0,0.14551]
[1762290405752,0.35306,100550.0,100540.0,0.04805]
[1762290405953,3.35306,100550.0,100540.0,0.04805]
[1762290406154,3.34,100540.0,100530.0,0.04905]
[1762290406706,3.37011177,100540.0,100530.0,0.001]
[1762290406934,3.41912177,100540.0,100530.0,0.001]
[1762290407158,3.61804757,100540.0,100530.0,0.001]
[1762290407374,0.34,100520.0,100510.0,0.04857171]
[1762290407591,3.43427877,100520.0,100510.0,0.04857171]
[1762290407819,0.34,100520.0,100510.0,0.20830171]
[1762290408068,0.02962177,100540.0,100510.0,0.20830171]
[1762290408069,0.06256,100550.0,100510.0,0.5115149]
[1762290408307,0.001,100550.0,100530.0,0.19894448]
[1762290408507,3.0,100550.0,100540.0,0.06227]
[1762290408713,3.0,100550.0,100540.0,0.3586558]
[1762290408916,0.02905,100570.0,100540.0,0.3586558]
[1762290408917,3.0,100560.0,100540.0,0.3586558]
[1762290409115,3.0,100560.0,100540.0,0.35865526]
[1762290409265,0.001,100550.0,100540.0,0.29638526]
[1762290409468,0.001,100550.0,100540.0,0.19892526]
[1762290409772,0.001,100550.0,100540.0,0.26119526]
[1762290409982,0.001,100550.0,100540.0,0.35865526]
[1762290410181,0.001,100550.0,100540.0,0.15973]
[1762290410528,3.34,100550.0,100540.0,0.15973]
[1762290410753,0.341,100550.0,100540.0,0.15973]
[1762290411260,0.341,100550.0,100530.0,0.00022806]
[1762290411261,3.0,100540.0,100530.0,0.00022806]
[1762290411838,3.0,100540.0,100530.0,0.19917364]
[1762290411995,3.0,100540.0,100530.0,0.35890364]
[1762290412222,3.0,100550.0,100530.0,0.15995806]
[1762290412423,3.0,100540.0,100530.0,0.15995806]
[1762290412619,3.0,100540.0,100530.0,0.35890364]
[1762290413370,3.0,100540.0,100530.0,0.00022806]
[1762290413569,3.0,100540.0,100530.0,0.00122806]
[1762290413910,3.43955697,100540.0,100530.0,0.00122806]
[1762290414421,3.34,100540.0,100530.0,0.00122806]
[1762290414618,3.3895,100540.0,100530.0,0.00122806]
[1762290414824,3.3895,100540.0,100530.0,0.00022806]
[1762290415324,3.3905,100540.0,100530.0,0.00022806]
[1762290415574,3.3895,100540.0,100530.0,0.00022806]
[1762290415792,3.48905697,100540.0,100530.0,0.00022806]
[1762290416411,3.3895,100540.0,100530.0,0.00022806]
[1762290416915,3.35130156,100540.0,100530.0,0.00022806]
[1762290417130,0.342,100540.0,100530.0,0.15995806]
[1762290417331,0.342,100540.0,100530.0,0.00022806]
[1762290417332,0.002,100540.0,100530.0,0.00022806]
[1762290417540,0.002,100540.0,100530.0,0.35890364]
[1762290417971,0.342,100540.0,100530.0,0.06249806]
[1762290418208,0.342,100540.0,100530.0,0.00022806]
[1762290418639,3.40951661,100540.0,100530.0,0.00022806]
[1762290419050,3.41882349,100540.0,100530.0,0.00022806]
[1762290419507,3.44785314,100540.0,100530.0,0.00022806]